{"text_format":"3","workbook":"xlsx","n_sheets":2,"sheets":["list","data"],"read":"whole","date_system":"1900"}

{"sheet":"list","index":0,"n_rows":266,"n_cols":9,"rows_kept":266}
["№","Фамлия","Имя","Отчество","Класс","Класс участия","Балл","Макс. Балл","Статус"]
[1,3,4,5,9,10,11,12,13]
[1,"Ильин","Даниил","Васильевич",4,4,0,56,"участник"]
[2,"Семёнов","Валерий","Ильич",{"$f":"$E$3","v":4},4,7,56,"участник"]
[3,"Сафиуллина","Рената","Эмилевна",4,4,2,56,"участник"]
[4,"Шадиев","Карим ","Тимурович",4,4,10,56,"участник"]
[5,"Балитов","Тимур","Русланович",{"$f":"$E$3","v":4},4,0,56,"участник"]
[6,"Леонтьева","Карина","Александровна",4,4,7,56,"участник"]
[7,"Спиридонов","Аскар","Денисович",4,4,0,56,"участник"]
[8,"Валеев","Рамазан","Айратович",4,4,9,56,"участник"]
[9,"Закиров","Амир","Эльвардович",4,4,0,56,"участник"]
[10,"Закиров","Адель","Эльвардович",4,4,7,56,"участник"]
[11,"Хабибуллин","Замир","Артурович",4,4,7,56,"участник"]
[12,"Черкеева ","Дина","Александровна",4,4,3,56,"участник"]
[13,"Белова","Василиса","Владимировна",4,4,10,56,"участник"]
[14,"Лоскутников","Данияр","Аггеевич",4,4,7,56,"участник"]
[15,"Чаптаров","Лев","Алексеевич",4,4,3,56,"участник"]
[16,"Сабитова","Амелия","Раилевна",4,4,10,56,"участник"]
[17,"Шагидуллина","Зарина","Ленаровна",4,4,0,56,"участник"]
[18,"Баженов","Олег","Дмитриевич",4,4,17,56,"участник"]
[19,"Воронина","Варвара","Михайловна",4,4,14,56,"участник"]
[20,"Кадыров","Карим ","Ленарович",4,4,7,56,"участник"]
[21,"Мансветова","Милана","Андреевна",4,4,9,56,"участник"]
[22,"Соколовский","Марк","Артёмович",4,4,12,56,"участник"]
[23,"Зянкин","Артём","Владимировна",4,4,0,56,"участник"]
[24,"Исмагилов","Юсуф","Булатович",4,4,31,56,"победитель"]
[25,"Матвеев","Данил","Сергеевич",4,4,21,56,"участник"]
[26,"Анисимов","Тимофей","Ильич",4,4,3,56,"участник"]
[27,"Хакимова","Арина","Тимуровна",4,4,3,56,"участник"]
[28,"Краснов","Илья","Игоревич",5,5,10,56,"участник"]
[29,"Хамраев","Мъаруф","Джамшедович",5,5,2,56,"участник"]
[30,"Ананд","Раджив",null,5,5,10,56,"участник"]
[31,"Семёнов","Дмитрий","Валерьевич",5,5,14,56,"участник"]
[32,"Хусаинов","Тимур","Дмитриевич",5,5,3,56,"участник"]
[33,"Насифуллин","Рамазан","Алмазович",5,5,7,56,"участник"]
[34,"Султанаев","Амир","Зинурович",5,5,0,56,"участник"]
[35,"Глинский","Ярослав","Евгеньевич",5,5,0,56,"участник"]
[36,"Блохина","Вероника","Олеговна",5,5,3,56,"участник"]
[37,"Фомичёв","Тимофей","Александрович",5,5,35,56,"победитель"]
[38,"Камалов","Данияр","Ильнарович",5,5,7,56,"участник"]
[39,"Гайсина","София","Маратовна",5,5,3,56,"участник"]
[40,"Низамова","Айсилу","Маратовна",5,5,7,56,"участник"]
[41,"Матвеев","Платон","Михайлович",5,5,17,56,"участник"]
[42,"Маркелов","Даниил","Игоревич",5,5,0,56,"участник"]
[43,"Паладьева","Амалия","Андреевна",5,5,0,56,"участник"]
[44,"Магизянов","Кирилл","Максимович",5,5,3,56,"участник"]
[45,"Лапина","Дина","Викторовна",5,5,0,56,"участник"]
[46,"Ибрагимова","Фатима","Фаридовна",5,5,0,56,"участник"]
[47,"Галиев","Эльдар","Ленарович",5,5,10,56,"участник"]
[48,"Газизов","Самат","Ильнурович",5,5,7,56,"участник"]
[49,"Шафигулина","Асель","Рустемовна",5,5,0,56,"участник"]
[50,"Лёвушкин","Александр","Николаевич",5,5,3,56,"участник"]
[51,"Мухутдинова","Эмилия","Альбертовна",5,5,14,56,"участник"]
[52,"Осипов","Семён","Денисович",5,5,0,56,"участник"]
[53,"Платонова","Мария","Андреевна",5,5,3,56,"участник"]
[54,"Велиев","Даниил","Русланович",5,5,0,56,"участник"]
[55,"Закирова","Зарина","Ильдаровна",5,5,3,56,"участник"]
[56,"Баранова","Любовь","Артемьевна",5,5,35,56,"победитель"]
[57,"Алексеева","Арина","Александровна",5,5,3,56,"участник"]
[58,"Баимов","Всеволод","Игоревич",5,5,0,56,"участник"]
[59,"Кириллова","Софья","Алексеевна",5,5,3,56,"участник"]
[60,"Демиданова","Ариана","Ильинична",5,5,10,56,"участник"]
[61,"Гордеева","Вероника","Игоревна",5,5,10,56,"участник"]
[62,"Кадыров","Амир","Артурович",5,5,24,56,"участник"]
[63,"Губайдуллин","Тимур","Ринатович",5,5,4,56,"участник"]
[64,"Портнова","Диана","Антоновна",5,5,0,56,"участник"]
[65,"Газизов","Искандер","Рамилевич",5,5,10,56,"участник"]
[66,"Галиуллин","Айдар","Ленарович",5,5,3,56,"участник"]
[67,"Авдеева","Василиса","Владимировна",5,5,17,56,"участник"]
[68,"Каримуллин","Карим ","Ильмирович",5,5,7,56,"участник"]
[69,"Ганиева","Рената","Рустемовна",5,5,0,56,"участник"]
[70,"Акрамова","Омина","Исоевна",5,5,0,56,"участник"]
[71,"Абдулатыпова","Аделина","Рустемовна",5,5,3,56,"участник"]
[72,"Хузин","Ислам","Амирович",5,5,0,56,"участник"]
[73,"Рашитов","Камиль","Радикович",5,5,0,56,"участник"]
[74,"Малков","Роман","Сергеевич",5,5,17,56,"участник"]
[75,"Конков","Марк","Максимович",5,5,0,56,"участник"]
[76,"Анисимов","Никита","Владимирович",5,5,10,56,"участник"]
[77,"Тимофеева","Анастасия","Константиновна",5,5,10,56,"участник"]
[78,"Зинатуллин","Салим","Ленарович",5,5,0,56,"участник"]
[79,"Зарипов","Адель","Инсафович",6,6,24,56,"участник"]
[80,"Иванов","Лев","Константинович",6,6,0,56,"участник"]
[81,"Прокофьева","Ульяна","Андреевна",6,6,3,56,"участник"]
[82,"Титова","Ульяна","Ильнуровна",6,6,21,56,"участник"]
[83,"Шагидуллин","Тимур","Ленарович",6,6,0,56,"участник"]
[84,"Давлетшин","Данил","Никитич",6,6,38,56,"победитель"]
[85,"Зайнуллина","Камилла","Альфредовна",6,6,27,56,"призер"]
[86,"Саляхов","Салават","Маратович",6,6,38,56,"победитель"]
[87,"Хасанова","Аделя","Ильназовна",6,6,0,56,"участник"]
[88,"Хазипова","Азалия","Ринатовна",6,6,0,56,"участник"]
[89,"Муласова","Камилла","Михайловна",6,6,7,56,"участник"]
[90,"Шарафуддинова","Ясмина","Маратовна",6,6,24,56,"участник"]
[91,"Гараев","Низам","Алмазович",6,6,0,56,"участник"]
[92,"Ганиева","Зарина","Даниловна",6,6,0,56,"участник"]
[93,"Богинский","Константин","Ильич",6,6,7,56,"участник"]
[94,"Бобиева","Хамида","Абдугафаровна",6,6,24,56,"участник"]
[95,"Галиуллин","Расул","Рустемович",6,6,0,56,"участник"]
[96,"Родионов","Радмир","Станиславович",6,6,0,56,"участник"]
[97,"Харитонов","Николай","Сергеевич",6,6,7,56,"участник"]
[98,"Юдин","Илья","Денисович",6,6,0,56,"участник"]
[99,"Абросимова","Анастасия","Вячеславовна",6,6,0,56,"участник"]
[100,"Бас","Екатерина","Витальевна",6,6,24,56,"участник"]
[101,"Петрова","Анастасия","Александровна",6,6,7,56,"участник"]
[102,"Дыганов","Данил","Иванович",6,6,14,56,"участник"]
[103,"Сахабиева","Виолетта","Альфисовна",6,6,7,56,"участник"]
[104,"Азизова ","Айсылу","Маратовна",6,6,21,56,"участник"]
[105,"Симонов","Мирослав","Владимирович",6,6,0,56,"участник"]
[106,"Галеев","Дамир","Маратович",6,6,0,56,"участник"]
[107,"Шафигуллина","Камилла","Руслановна",6,6,0,56,"участник"]
[108,"Вандышева","Валерия","Александровна",6,6,0,56,"участник"]
[109,"Бикмухаметов","Самир","Олегович",6,6,10,56,"участник"]
[110,"Галиева","Аиша","Артуровна",6,6,0,56,"участник"]
[111,"Исмагилов","Султан","Ильнарович",6,6,0,56,"участник"]
[112,"Гильфанов","Самат","Рафисович",6,6,24,56,"участник"]
[113,"Мамаев","Джуниор","Клаудионорович",6,6,7,56,"участник"]
[114,"Хайкин","Михаил","Валерьевич",6,6,0,56,"участник"]
[115,"Аникина","Тамара","Владиславовна",6,6,17,56,"участник"]
[116,"Гайнулин","Руслан","Иркинович",6,6,7,56,"участник"]
[117,"Гордеев","Максим","Витальевич",6,6,7,56,"участник"]
[118,"Красильников","Артур","Сергеевич",6,6,0,56,"участник"]
[119,"Хусаевнов","Инсаф","Рамилевич",6,6,28,56,"призер"]
[120,"Аникин","Роман","Владиславович",6,6,7,56,"участник"]
[121,"Вишняков","Владислав","Дмитриевич",6,6,0,56,"участник"]
[122,"Зайков","Артем ","Александрович",6,6,0,56,"участник"]
[123,"Ильиных ","Арсений","Сергеевич",6,6,3,56,"участник"]
[124,"Сионков","Ранель","Алексеевич",6,6,7,56,"участник"]
[125,"Хабибуллина","Амилла","Ильназовна",6,6,7,56,"участник"]
[127,"Гиниятуллин","Фатых","Ильнурович",7,7,28,56,"призер"]
[128,"Зарипов","Артур","Тимурович",7,7,7,56,"участник"]
[129,"Алексеев","Тимур","Андреевич",7,7,21,56,"участник"]
[130,"Байжанов","Амир","Ринатович",7,7,9,56,"участник"]
[131,"Мамедов","Самат","Ленарович",7,7,2,56,"участник"]
[132,"Фазылзянов","Алмаз","Рифатович",7,7,21,56,"участник"]
[133,"Нассар","Сейф","Мохамед",7,7,16,56,"участник"]
[134,"Бисеров","Айнур","Ринатович",7,7,7,56,"участник"]
[135,"Сергиенко","Георгий","Владимирович",7,7,8,56,"участник"]
[136,"Бюйюкордек","Семих","Волканович",7,7,21,56,"участник"]
[137,"Никитушкин","Кирилл","Александрович",7,7,7,56,"участник"]
[138,"Гайнуллин","Амир","Ильнурович",7,7,28,56,"призер"]
[139,"Абдуллин","Азат","Радикович",7,7,0,56,"участник"]
[140,"Шамсутдинов","Ролан","Олегович",7,7,22,56,"участник"]
[141,"Исмагилова","Залия","Венарисовна",7,7,16,56,"участник"]
[142,"Шарафисламова","Вилена","Владимировна",7,7,21,56,"участник"]
[143,"Ибрагимова","Лия","Айратовна",7,7,21,56,"участник"]
[144,"Миронова","Валерия","Сергеевна",7,7,16,56,"участник"]
[145,"Гапдрахимова","Гузалия","Радиковна",7,7,35,56,"победитель"]
[146,"Ильина","Таисия","Алексеевна",7,7,0,56,"участник"]
[147,"Салахиев","Амир","Ринатович",7,7,23,56,"участник"]
[148,"Сагутдинова","Изабелла","Азатовна",7,7,7,56,"участник"]
[149,"Давлеев","Артур","Робертович",7,7,21,56,"участник"]
[150,"Халимдаров","Аскар","Тимурович",7,7,14,56,"участник"]
[151,"Андрамонова","Амелия","Павловна",7,7,23,56,"участник"]
[152,"Гаязова","Амелина","Ренатовна",7,7,0,56,"участник"]
[153,"Дёмина","Наргиз","Тимуровна",8,8,24,56,"участник"]
[154,"Вафина","Полина","Альбертовна",8,8,10,56,"участник"]
[155,"Кашапов","Рустам","Ринатович",8,8,17,56,"участник"]
[156,"Валиев","Карим","Фанисович",8,8,10,56,"участник"]
[157,"Ануфриев","Артём","Александрович",8,8,3,56,"участник"]
[158,"Багиров","Арслан","Русланович",8,8,10,56,"участник"]
[159,"Ишмухаметова","Алина","Руслановна",8,8,14,56,"участник"]
[160,"Гуськова","Алиса","Петровна",8,8,10,56,"участник"]
[161,"Мироненко ","Юлия","Сергеевна",8,8,10,56,"участник"]
[162,"Усманова","Марьям","Ренатовна",8,8,17,56,"участник"]
[163,"Самигуллина","Аделина","Ильнуровна",8,8,13,56,"участник"]
[164,"Варламова","Дарина","Андреевна",8,8,17,56,"участник"]
[165,"Лысов","Даниил","Олегович",8,8,17,56,"участник"]
[166,"Куприянов","Макар","Денисович",8,8,0,56,"участник"]
[167,"Госьков","Пётр","Иванович",8,8,0,56,"участник"]
[168,"Мухаметзянова","Камиля","Айдаровна",8,8,10,56,"участник"]
[169,"Филатов","Даниил","Денисович",8,8,31,56,"победитель"]
[170,"Мухаметшин ","Булат","Наилевич",8,8,28,56,"призер"]
[171,"Шайхуллин","Дамир","Ленарович",8,8,17,56,"участник"]
[172,"Мукминов","Арслан","Азатович",8,8,17,56,"участник"]
[173,"Фазулзянов","Артур","Алмазович",8,8,14,56,"участник"]
[174,"Морозов","Сергей","Михайлович",8,8,7,56,"участник"]
[175,"Валиев","Раяз","Русланович",8,8,10,56,"участник"]
[176,"Закиров","Ильшат","Ильнурович",8,8,20,56,"участник"]
[177,"Тимуршин","Самат","Рамилевич",8,8,14,56,"участник"]
[178,"Мукасов","Никита","Дмитриевич",8,8,14,56,"участник"]
[179,"Парфёнов","Иван","Павлович",8,8,17,56,"участник"]
[180,"Черкеев","Даниил","Александрович",8,8,17,56,"участник"]
[181,"Анисимов","Михаил","Викторович",8,8,10,56,"участник"]
[182,"Рахматуллин","Ростислав","Денисович",8,8,14,56,"участник"]
[183,"Габсалямова","Милена","Радиевна",9,9,28,56,"призер"]
[184,"Шаймарданова","Аделя","Айдаровна",9,9,22,56,"участник"]
[185,"Шутова","Дарья","Михайловна",9,9,22,56,"участник"]
[186,"Газизова","Диляра","Ильнуровна",9,9,35,56,"призер"]
[187,"Сагыйтов","Амаль","Алмазович",9,9,15,56,"участник"]
[188,"Фаттахов","Ранэль","Рамилевич",9,9,22,56,"участник"]
[189,"Ласточкина","Анастасия","Алексеевна",9,9,28,56,"призер"]
[190,"Суреева","Евгения","Евгеньевна",9,9,28,56,"призер"]
[191,"Расторгуева","Анастасия","Андреевна",9,9,21,56,"участник"]
[192,"Фазлыева","Зарина","Равилевна",9,9,7,56,"участник"]
[193,"Скворцов","Максим","Артёмович",9,9,8,56,"участник"]
[194,"Паткин","Дмитрий","Андреевич",9,9,35,56,"призер"]
[195,"Хайруллина","Марьям","Тагировна",9,9,8,56,"участник"]
[196,"Галиева","Камила","Ленаровна",9,9,36,56,"победитель"]
[197,"Бикмухаметова","Сабина","Олеговна",9,9,14,56,"участник"]
[198,"Булашова","Алёна","Алексеевна",9,9,29,56,"призер"]
[199,"Валиуллин","Ранель","Дамирович",9,9,22,56,"участник"]
[200,"Демьянова","Злата","Артёмовна",9,9,0,56,"участник"]
[201,"Варламова","Полина","Сергеевна",9,9,22,56,"участник"]
[202,"Миронов","Тимофей","Сергеевич",9,9,0,56,"участник"]
[203,"Шалагин","Давид","Вячеславович",9,9,22,56,"участник"]
[204,"Манжола","Анастасия","Александровна",9,9,14,56,"участник"]
[205,"Храмов","Савелий","Евгеньевич",9,9,22,56,"участник"]
[206,"Фахрутдинов","Риназ","Венерович",9,9,22,56,"участник"]
[207,"Корешкова","Анна","Георгиевна",9,9,22,56,"участник"]
[208,"Анохин","Макар","Иванович",9,9,15,56,"участник"]
[209,"Фазылзянова","Алсу","Рифатовна",9,9,14,56,"участник"]
[210,"Феткулова","Азиза","Ильгизовна",9,9,0,56,"участник"]
[211,"Крайнов","Илья","Вячеславович",9,9,29,56,"призер"]
[212,"Гончаров","Роман","Васильевич",9,9,36,56,"победитель"]
[213,"Мухаметдинов","Амир","Айратович",9,9,1,56,"участник"]
[214,"Чахкиева","Алия","Магомедовна",9,9,8,56,"участник"]
[215,"Голубева","Эвелина","Витальевна",9,9,1,56,"участник"]
[216,"Шиляева","Алеся","Андреевна",9,9,14,56,"участник"]
[217,"Вдовина","Полина","Евгеньевна",9,9,7,56,"участник"]
[218,"Ильясова","Рузанна","Маратовна",9,9,0,56,"участник"]
[219,"Галиуллин","Алмаз","Ленарович",9,9,22,56,"участник"]
[220,"Мингазов","Данил","Айратович",9,9,0,56,"участник"]
[221,"Никитин","Никита","Валерьевич",9,9,29,56,"призер"]
[222,"Завиялов","Илья","Николаевич",9,9,36,56,"победитель"]
[223,"Тихонов","Борис","Алексеевич",9,9,21,56,"участник"]
[224,"Мамыкина","Арина","Эдуардовна",9,9,21,56,"участник"]
[225,"Исмагилова","Индира","Ильнаровна",9,9,14,56,"участник"]
[226,"Низамов","Салим","Ильнарович",9,9,1,56,"участник"]
[227,"Багаутдинова","Султана","Рашитовна",9,9,35,56,"призер"]
[228,"Воробьёва ","Анастасия","Алексеевна",10,10,21,56,"участник"]
[229,"Хабирова","Галия","Рамилевна",10,10,14,56,"участник"]
[230,"Гатауллин","Артём","Артурович",10,10,21,56,"участник"]
[231,"Насибуллин","Булат","Рустемович",10,10,30,56,"призер"]
[232,"Загидуллин","Азат","Альбертович",10,10,0,56,"участник"]
[233,"Липин","Анатолий","Михайлович",10,10,26,56,"участник"]
[234,"Рафикова","Камилла","Алмазовна",10,10,0,56,"участник"]
[235,"Гизатуллин","Инсаф","Аделевич",10,10,28,56,"призер"]
[236,"Романов","Савелий","Максимович",10,10,24,56,"участник"]
[237,"Ягудин","Адель","Ильдарович",10,10,21,56,"участник"]
[238,"Сидорова","Милена","Романовна",10,10,14,56,"участник"]
[239,"Даутова","Лейла","Дамировна",10,10,14,56,"участник"]
[240,"Мукасов","Даниил","Дмитриевич",10,10,16,56,"участник"]
[241,"Удальев","Ярослав","Олегович",10,10,14,56,"участник"]
[242,"Жилин","Ярослав","Антонович",10,10,18,56,"участник"]
[243,"Кулагина","Александра","Евгеньевна",10,10,19,56,"участник"]
[244,"Ларин","Ярослав","Эдуардович",10,10,21,56,"участник"]
[245,"Можейко","Амир","Максимович",10,10,35,56,"призер"]
[246,"Зарытов","Кирилл","Александрович",10,10,35,56,"призер"]
[247,"Филиппов","Александр ","Романович",10,10,30,56,"призер"]
[248,"Шарафутдинов","Шамиль","Радикович",10,10,37,56,"победитель"]
[249,"Хасанов","Эмир","Альбертович",10,10,0,56,"участник"]
[250,"Миронов","Матвей","Игоревич",10,10,7,56,"участник"]
[251,"Лебедев","Анатолий","Александрович",10,10,19,56,"участник"]
[252,"Гордеева","Элина","Егоровна",10,10,7,56,"участник"]
[253,"Гатин","Альберт","Аскарович",10,10,14,56,"участник"]
[254,"Ахмадуллин","Аяз","Ильгамович",11,11,16,56,"участник"]
[255,"Габидуллин","Шамиль","Алмазович",11,11,28,56,"призер"]
[256,"Галимова","Алина","Зуфаровна",11,11,14,56,"участник"]
[257,"Дровосеков","Андрей","Максимович",11,11,21,56,"участник"]
[258,"Маркухин","Эмиль","Ильич",11,11,14,56,"участник"]
[259,"Низамиев","Эдуард","Артурович",11,11,21,56,"участник"]
[260,"Поворов","Тимофей","Юрьевич",11,11,14,56,"участник"]
[261,"Полинчук","Матвей","Дмитриевич",11,11,21,56,"участник"]
[262,"Сафиканов","Давид","Русланович",11,11,35,56,"победитель"]
[263,"Сафин","Карим","Рустемович",11,11,7,56,"участник"]
[264,"Фахретдинов","Сармат","Русланович",11,11,7,56,"участник"]
[265,"Черномазов","Ярослав","Максимович",11,11,0,56,"участник"]

{"sheet":"data","index":1,"n_rows":25,"n_cols":3,"rows_kept":25,"hidden":true}
[]
["Техника, технология и техническое творчество .  Ручная обработка древесины"]
["Техника, технология и техническое творчество .  Ручная обработка металла"]
["Техника, технология и техническое творчество .  Механическая обработка древесины"]
["Техника, технология и техническое творчество .  Механическая обработка металла"]
["Техника, технология и техническое творчество .  Электротехника"]
["Техника, технология и техническое творчество .  Робототехника"]
["Техника, технология и техническое творчество .  3d - моделирование и печать"]
["Техника, технология и техническое творчество .  Обработка материалов на лазерно-гравировальной машине"]
["Техника, технология и техническое творчество .  Промышленный дизайн"]
["Культура дома, дизайн и технологии .  Обработка швейного изделия или узла + моделирование швейных изделий"]
["Культура дома, дизайн и технологии .  Обработка швейного изделия или узла + моделирование швейных изделий с использованием графических редакторов"]
["Культура дома, дизайн и технологии .  Обработка швейного изделия или узла на швейно-вышивальном оборудовании + моделирование швейных изделий"]
["Культура дома, дизайн и технологии .  Обработка швейного изделия или узла на швейно-вышивальном оборудовании + моделирование швейных изделий с использованием графических редакторов"]
["Культура дома, дизайн и технологии .  Робототехника"]
["Культура дома, дизайн и технологии .  3d - моделирование и печать"]
["Культура дома, дизайн и технологии .  Обработка материалов на лазерно-гравировальной машине"]
["Культура дома, дизайн и технологии .  Промышленный дизайн"]
["Роботехника .  "]
["Информационная безопасность ."]
[]
[]
["участник"]
["призер",null,"да"]
["победитель"]